Cogmind - Beta 15 @@@ ROGUE MODE // 2025.07.19 @ 09:05:15 Player: Fazzonamite Result: Destroyed by G-34 Mercenary with Small Laser Performance ------------- Evolutions (0) 0 Regions Visited (1) 200 Robots Destroyed (21) 105 Value Destroyed (296) 296 Prototype IDs (0) 0 Alien Tech Used (0) 0 Bonus (0) 0 TOTAL SCORE: 601 Bonus ------- None Cogmind --------- Core Integrity 0/250 Matter 281/300 Energy 265/265 System Corruption 0% Temperature Hot (215) Movement Treading (320) Ox2 Location -10/Materials Parts ------- > --- POWER (1) -------- Improved Ion Engine > --- PROPULSION (2) --- Improved Treads Wheel > --- UTILITY (2) ------ High-capacity Storage Unit Utility Shielding > --- WEAPON (2) ------- Medium Laser Light Assault Rifle > --- INVENTORY (20) --- Improved Ion Engine Improved Ion Engine Improved Treads Wheel Wheel Wheel Wheel Small Storage Unit High-capacity Matter Pod (200) Structural Scanner Sensor Array EM Pulse Gun Small Laser Light Assault Rifle Light Assault Rifle Rocket Launcher Rocket Launcher Mining Claw Peak State ------------ > --- POWER ------------ Improved Ion Engine > --- PROPULSION ------- Improved Treads Wheel > --- UTILITY ---------- High-capacity Storage Unit Utility Shielding > --- WEAPON ----------- Medium Laser Rocket Launcher > --- INVENTORY -------- Improved Ion Engine Improved Ion Engine Improved Treads Wheel Wheel Wheel Wheel Small Storage Unit High-capacity Matter Pod Structural Scanner Sensor Array EM Pulse Gun Small Laser Light Assault Rifle Light Assault Rifle Light Assault Rifle Rocket Launcher Mining Claw [Rating: 12] Favorites ----------- Power Light Ion Engine Engine Light Ion Engine Propulsion Wheel Treads Improved Treads Wheel Wheel Utility Utility Shielding Storage High-capacity Storage Unit Protection Utility Shielding Weapon Medium Laser Energy Gun Medium Laser Ballistic Gun Light Assault Rifle Launcher Rocket Launcher Build | -11 -10 ------- Run | Yrd Mat Slots Evolved . | . . Power . | . . Propulsion . | . . Utility . | . . Weapon . | . . Parts Attached 12 | 4 8 Power 2 | 1 1 Engine 2 | 1 1 Core . | . . Reactor . | . . Propulsion 3 | 1 2 Treads 1 | . 1 Leg . | . . Wheel 2 | 1 1 Hover . | . . Flight . | . . Utility 3 | . 3 Device . | . . Storage 2 | . 2 Processor . | . . Hackware . | . . Protection 1 | . 1 Artifact . | . . Weapon 4 | 2 2 Energy Gun 1 | 1 . Energy Cannon . | . . Ballistic Gun 2 | 1 1 Ballistic Cannon . | . . Launcher 1 | . 1 Special Weapon . | . . Impact Weapon . | . . Slashing Weapon . | . . Piercing Weapon . | . . Special Melee Weapon . | . . Unidentified Prototypes . | . . Parts Lost . | . . Power . | . . Propulsion . | . . Utility . | . . Weapon . | . . Highest Loss Streak . | . . To Critical Strikes . | . . Average Backups 12 | 3 13 Power 1 | . 1 Propulsion 3 | 1 4 Utility 3 | . 3 Weapon 3 | . 4 Tool/Special . | . . Unused Backups 23 | . 23 Power 4 | . 4 Propulsion 5 | . 5 Utility 4 | . 4 Weapon 10 | . 10 Tool/Special . | . . Average Slot Usage (%) 97 | . 97 Engine 14 | . 14 Treads 5 | . 5 Wheel 21 | . 21 Storage 13 | . 13 Protection 13 | . 13 Energy Gun 14 | . 14 Ballistic Gun 11 | . 11 Launcher 2 | . 2 Peak Build Rating 12 | 4 12 Average Rating 8 | 3 9 On Entrance 2 | . 4 Naked Turns . | . . Heaviest Build 54 | 6 54 Greatest Support 20 | 10 20 Greatest Overweight (x) 5 | . 5 Average Overweight (x) 2 | . 2 Largest Inventory Capacity 20 | 5 20 Average Capacity 16 | 5 18 Most Carried 19 | 4 19 Average Carried 12 | 3 13 Final Capacity 20 | 5 20 Final Carried 18 | 4 18 Class Distribution -------------------- 100% | Mutant Dominant Class ---------------- Mutant | -10/Materials Resources | -11 -10 ----------- Run | Yrd Mat Matter Collected 591 | 259 332 Remotely . | . . Salvage Created 528 | 54 474 Parts 32 | 7 25 Haulers Intercepted . | . . Recyclers Shooed 2 | 1 1 Parts Field Recycled . | . . Retrieved Matter . | . . Parts Self-Destructed . | . . Prevented . | . . Kills | -11 -10 ------- Run | Yrd Mat Combat Hostiles Destroyed 12 | . 12 Guns 8 | . 8 AOE 4 | . 4 Classes Destroyed 7 | 1 6 Worker 1 | . 1 Builder 2 | . 2 Tunneler 3 | 3 . Recycler 2 | . 2 Operator 1 | . 1 Swarmer 8 | . 8 Grunt 4 | . 4 Best Kill Streak 6 | 1 6 Combat Bots Only 3 | . 3 Max Kills in Single Turn 4 | 1 4 Gunslinging . | . . Exploded 2 | . 2 Melee . | . . Uniques/NPCs Destroyed . | . . Combat | -11 -10 -------- Run | Yrd Mat Hostile Shots Fired 56 | . 56 Missed 13 | . 13 Hits 43 | . 43 Projectile 43 | . 43 Critical Strikes 1 | . 1 Damage Taken 508 | . 508 Core 259 | . 259 Absorbed by Shields . | . . Redirected to Shielding 5 | . 5 Core Remaining (%) 100 | 100 . Volleys Fired 60 | 19 41 Largest 2 | 2 2 Hottest 70 | 70 70 Shots Fired 117 | 38 79 Gun 114 | 38 76 Cannon . | . . Launcher 3 | . 3 Special . | . . Kinetic 57 | 19 38 Thermal 57 | 19 38 Explosive 3 | . 3 Electromagnetic . | . . Robot Hit Streak 10 | 10 8 Robot Miss Streak 5 | 2 5 Penetration Max . | . . Secondary Targets . | . . Shots Hit Robots 77 | 28 49 Core Hits 30 | 6 24 Critical Kills . | . . Critical Parts Destroyed 2 | 2 . Critical Strikes 8 | 4 4 Burn 6 | 2 4 Destroy 2 | 2 . Melee Attacks . | . . Impact . | . . Slashing . | . . Piercing . | . . Sneak Attacks . | . . Combat Hostiles . | . . Follow-up Attacks . | . . Damage Inflicted 1238 | 284 954 Guns 787 | 284 503 Cannons . | . . Explosions 451 | . 451 Melee . | . . Ramming . | . . Kinetic 310 | 106 204 Thermal 620 | 178 442 Explosive 308 | . 308 Electromagnetic . | . . Impact . | . . Slashing . | . . Piercing . | . . Highest Corruption . | . . Average Corruption . | . . Corruption Purged . | . . Corruption Blocked . | . . Overload Shots . | . . Overflow Damage 6 | . 6 Projectiles . | . . Explosions 6 | . 6 Melee . | . . Knockbacks . | . . Impact . | . . Kinetic . | . . Secondary . | . . Self-Inflicted Damage 128 | . 128 Shots 2 | . 2 Rammed . | . . Targets Rammed . | . . Kicked . | . . Crushed . | . . Highest Temperature 209 | 100 209 Average Temperature 49 | 38 55 Received Heat Transfer 78 | . 78 Siege Activations . | . . Martial Activations . | . . Shielding Activations . | . . Robots Disrupted . | . . Combat Hostiles . | . . Robots Corrupted . | . . Combat Hostiles . | . . Parts Fried . | . . Impact Corruptions . | . . Robots Melted . | . . Combat Hostiles . | . . Parts Melted 5 | 2 3 Heat Transferred 1950 | 666 1284 Parts Sabotaged . | . . Parts Stolen . | . . Parts Stripped . | . . Power Chain Reactions . | . . Alert | -11 -10 ------- Run | Yrd Mat Maximum Alert Level . | . . Low Security (%) 100 | 100 100 Level 1 . | . . Level 2 . | . . Level 3 . | . . Level 4 . | . . Level 5 . | . . High Security . | . . Max Security . | . . Peak Influence 191 | 5 191 Initial 3 | . 3 Average 60 | . 69 Influence Increases 487 | 15 472 Destroy 0b10 Robot/C 240 | . 240 Destroy 0b10 Robot/NC 45 | 15 30 Destroy Leader 40 | . 40 Successful Hack 12 | . 12 Disable Machine 30 | . 30 Destroy Structure 60 | . 60 Lose Combat Pursuer 60 | . 60 Influence Decreases 320 | 10 310 Entered New Map 2 | . 2 Time Decay 318 | 10 308 Squads Dispatched 1 | . 1 Investigation 1 | . 1 Extermination . | . . Reinforcement . | . . Assault . | . . Garrison . | . . Intercept . | . . Searches Triggered . | . . Construction Impeded . | . . Haulers Reinforced . | . . Active Scanning Responses . | . . Cargo Convoy Interrupts . | . . Stealth | -11 -10 --------- Run | Yrd Mat Distress Signals 1 | . 1 Communications Jammed . | . . Distress Signals . | . . Times Spotted 20 | . 20 Peak Tracking Total 4 | . 4 Tactical Retreats 3 | . 3 Traps | -11 -10 ------- Run | Yrd Mat Traps Triggered 1 | . 1 Indirectly . | . . Trap Hack Attempts . | . . Triggered . | . . Disarmed . | . . Reprogrammed . | . . Reused . | . . Traps Extracted . | . . Installed . | . . Triggered . | . . Machines | -11 -10 ---------- Run | Yrd Mat Machines Disabled 2 | . 2 Max in Single Turn 2 | . 2 Machines Repaired . | . . Machines Dismantled . | . . Machines Sabotaged . | . . Overloaded Fab Kills . | . . Hacking | -11 -10 --------- Run | Yrd Mat Machines Accessed 3 | . 3 Terminals 2 | . 2 Fabricators . | . . Repair Stations . | . . Recycling Units 1 | . 1 Scanalyzers . | . . Garrison Access . | . . Total Hacks 4 | . 4 Successful 2 | . 2 Failed 2 | . 2 Catastrophic . | . . Database Lockouts . | . . Manual 4 | . 4 Terminals 3 | . 3 Fabricators . | . . Repair Stations . | . . Recycling Units 1 | . 1 Scanalyzers . | . . Garrison Access . | . . Terminal Hacks . | . . Fabricator Hacks . | . . Repair Station Hacks . | . . Recycling Unit Hacks . | . . Scanalyzer . | . . Garrison Access Hacks . | . . Unauthorized Hacks 2 | . 2 Terminals 1 | . 1 Botnet 1 | . 1 Fabricators . | . . Repair Stations . | . . Recycling Units 1 | . 1 Reject 1 | . 1 Scanalyzers . | . . Garrison Access . | . . Data Cores Recovered 1 | . 1 Used . | . . Hacking Detections 2 | . 2 Full Trace Events . | . . Feedback Events . | . . Feedback Blocked . | . . Robot Schematics Acquired . | . . Robots Built . | . . Authchips . | . . Time . | . . Total Robot Build Rating . | . . Part Schematics Acquired . | . . Parts Built . | . . Authchips . | . . Time . | . . Total Part Build Rating . | . . Parts Repaired . | . . Time . | . . Parts Recycled . | . . Recycled Matter . | . . Retrieved Matter . | . . Retrieved Components . | . . Parts Scanalyzed . | . . Part Schematics Acquired . | . . Parts Damaged . | . . Bothacking | -11 -10 ------------ Run | Yrd Mat Used RIF Installer . | . . Robots Hacked . | . . Non-combat . | . . Combat . | . . Robot Hacks Applied . | . . Relay Couplers Released . | . . Fabnet Peak Effective % . | . . Robots Rewired . | . . Allies Hacked . | . . Hacks Repelled . | . . Allies | -11 -10 -------- Run | Yrd Mat Total Allies . | . . Largest Group . | . . Highest-Rated Group . | . . Highest-Rated Ally . | . . Total Orders . | . . Ally Attacks . | . . Total Damage . | . . Kills . | . . Allies Corrupted . | . . Allies Melted . | . . Intel | -11 -10 ------- Run | Yrd Mat Active Infowar (turns) . | . . Robot Analysis Total . | . . Derelict Logs Recovered . | . . Drone Launches . | . . Drone Recoveries . | . . Exploration | -11 -10 ------------- Run | Yrd Mat Turns Passed 988 | 129 859 Spaces Moved 632 | 65 567 Core 1 | 1 . Treads . | . . Legs . | . . Wheels 631 | 64 567 Hover . | . . Flight . | . . Fastest Speed 50 | 50 80 Average Speed 115 | 79 119 Slowest Speed 155 | 80 155 Overloaded Moves . | . . Propulsion Burnouts . | . . Robots Hopped . | . . Potential Cave-ins . | . . Cave-ins Triggered . | . . Exploration Rate (%) 35 | 3 67 Regions Visited 1 Branch Regions . Pre-discovered Areas . | . . Known Exits Taken . | . . Unknown Exits Taken 1 | 1 . Scrap Searched . | . . Spaces Dug . | . . Terrain Destroyed 56 | . 56 Melee . | . . Projectile . | . . AOE 56 | . 56 Terrain Rammed . | . . Walls Destroyed . | . . Machines Disabled . | . . Actions | -11 -10 --------- Run | Yrd Mat Total 788 | 107 681 Wait 42 | 12 30 Move 631 | 64 567 Hop . | . . Pick Up 33 | 8 25 Fast Attach 2 | . 2 Attach 5 | 4 1 Detach . | . . Swap 5 | . 5 Drop 10 | . 10 Fire 60 | 19 41 Melee . | . . Ram . | . . Kick . | . . Crush . | . . Escape Stasis . | . . Rewire . | . . Trap . | . . Miscellaneous . | . . Route ------- -11/Scrapyard -10/Materials (discovered 2 exits: [*Mat x2]) History --------- Turn | Location | Event 22 | -11/Scrapyard | Discovered new exit (range 15) 130 | -11/Scrapyard | Entered Materials 326 | -10/Materials | Build established: Mutant 362 | -10/Materials | Core integrity fell below 50% 389 | -10/Materials | Discovered new exit (range 11) 602 | -10/Materials | Discovered new exit (range 10) 774 | -10/Materials | Core integrity fell below 20% 989 | -10/Materials | Destroyed by G-34 Mercenary with Small Laser Last Messages --------------- 00773_ S-10 Pest destroyed. 00775_ K-01 Serf destroyed. 00777_ S-10 Pest destroyed. 00777_ R-06 Scavenger destroyed. 00777_ S-10 Pest destroyed. 00777_ R-06 Scavenger destroyed. 00779_ K-01 Serf collects debris. 00784_ Acquired 43 matter. 00788_ K-01 Serf collects debris. 00788_ Acquired Lgt. Assault Rifle. 00789_ Dropped Lgt. Assault Rifle. 00792_ K-01 Serf collects debris. 00808_ Triggered Alarm Trap. 00808_ An alarm sounds. 00808_ ALERT: Alarm triggered, dispatching investigation squad. 00930_ W-16 Scout sends out distress signal. 00976_ G-34 Mercenary destroyed. 00978_ G-34 Mercenary suffers critical hit (Burn). 00987_ G-34 Mercenary destroyed. Map ----- +----------------------------------------------------+ | ??# #???#+## # # #???????? | | ??# #???# / # #????#### | | ??# #???# # # #????# | | ###+##### ######## # #????# | | ## #??????# # #????# | | ## """ #??????# # #????# | | ## """ ################+### #????# ** | | # """ # ## ?# #????# |* | | + """ # ## """ # #????# | | | # # """ ## """ # """ #????# | | # + """ ## """ + """ #????# | | # # """ ## # """ #????#### | | # """ # ## # """ #?????# | | ######## R" #####/########## ####### | | ???# """ ## = # | | ???# ## # = ############# | | ???# ## """ """ """ # =# # | | ???####+############ """ """ """ # +% # | | ?# #????# """ """ """ # # # | | ?# #????# # # # | | ?# #????#########+##### # # | | ?# #?###########^ # + | | ?# #?# # # # | | ?##############?# # ^ # #! | | ????????????????# %g= "" ^ ########### | | ????????????????# @# ^""^ ############# | | ????????????????###########^ "T #??### | | ??????????????????????##### "" #? # | | ??????????????????? "" #? # """ "" | | ??????????????????????##### # # """ "" | | ??????????????????????????# # # """ "" | | ??????????????????????????####+### + # | | ?????????????????????????????????# # # | | ?????????????????????????????????# < # # | | ?????????????????????????????????# #? #+###### | | ?????????????????????????????????#####? # ##### | | ????????????????????????????????????????### | | ??????????????????????????????????????????# # | | ???????????????##########?????????????????# # | | ???????????????# #?###?????#######?# + | | ???????????????# """ ###T####### #?# ### | | ???????????????# """ # ### #?# | | ???????????????# """ + #?# | | ???????????????# """ # ########?# | | ???????????????# ########### #????????# | | ???????????????# #?????????#######????????# | | ???????????????##########????????????????????????# | | | | | | | +----------------------------------------------------+ Best States ------------- Heat Dissipation 25 Energy Generation 12 Energy Capacity 265 Matter Stores 300 Matter Capacity 300 Sight Range 16 Terrain Scan Density 10 Utility Shielding 33 Evasion (%) 44 Recoil Reduction 1 Item Schematics ----------------- None Robot Schematics ------------------ None Fabricated ------------ Nothing Repaired ---------- Nothing Alien Tech Used ----------------- None Achievements -------------- None Challenges ------------ None Game ------ Seed ThrowingShieldExoskeleton Manual? 0 Play Time 00:23:27 Cumulative 176.3 hours Start 2025.07.19 @ 08:28:35 End 2025.07.19 @ 09:05:15 Sessions 1 Manual Loads 0 Difficulty Rogue Special Mode None Game No. 116 Rogue 116 Adventurer 0 Explorer 0 Win Type - Total 4 Types 3/0/1/0/0/0/0/0/0/0 Lore% 53 Gallery% 52 Achievement% 50 Wizard Run 0 Options --------- Layout 2 ASCII 0 Keyboard 0 Movement Mouse Keybinds 0 Fullscreen 1 Font 48/Smallcaps Map View 55x44 Zoom Use 0% Tactical HUD 1 Map Filters NONE Filters NONE Steam 1 RUN: a0e895ae-4495-4714-8cad-0577269e1b02